bitfinex-derivatives/quotes_ETHF0:USTF0_20250530
["timestamp","ask_amount","ask_price","bid_price","bid_amount"]
[1748578144504,0.1906,2623.0,2622.9,0.76236]
[1748578144705,0.1906,2623.0,2622.9,4.59336]
[1748578145009,0.1906,2623.0,2622.9,5.86146]
[1748578149409,0.1906,2623.0,2622.9,2.03046]
[1748578149610,0.1906,2623.0,2622.9,5.83446]
[1748578150909,3.2078,2623.6,2623.5,0.76218]
[1748578151214,4.2813104,2623.6,2623.5,4.56618]
[1748578151511,5.0434704,2623.6,2623.5,3.804]
[1748578151717,4.28103675,2623.6,2623.5,4.56618]
[1748578151908,5.04319675,2623.6,2623.5,4.56618]
[1748578152213,5.04319675,2623.6,2623.5,3.804]
[1748578152405,1.83539675,2623.6,2623.5,3.804]
[1748578152610,1.07323675,2623.6,2623.5,4.56618]
[1748578153109,3.13629675,2623.6,2623.5,4.56618]
[1748578153414,2.37395207,2623.6,2623.5,4.56618]
[1748578153713,3.13611207,2623.6,2623.5,4.56618]
[1748578154508,2.06306,2623.6,2623.5,4.56618]
[1748578154916,1.3009,2623.6,2623.5,4.56618]
[1748578155913,0.1905,2623.7,2623.6,0.76216]
[1748578156122,0.95263,2623.7,2623.6,0.76216]
[1748578156321,2.02528437,2623.7,2623.6,0.76216]
[1748578156624,2.02528437,2623.7,2623.5,4.56617]
[1748578156917,2.38595437,2623.6,2623.5,4.56617]
[1748578158224,1.07265437,2623.6,2623.5,4.56617]
[1748578159020,1.07265437,2623.6,2623.5,5.77967]
[1748578159517,1.07265437,2623.6,2623.5,6.41167]
[1748578159717,0.1905,2623.7,2623.6,0.76216]
[1748578160019,1.2629155,2623.7,2623.6,0.76216]
[1748578160221,0.1905,2623.7,2623.6,0.76216]
[1748578160422,1.26290701,2623.7,2623.6,0.76216]
[1748578161025,1.26290701,2623.7,2623.6,1.98326]
[1748578162122,3.2078,2624.5,2623.7,1.90532]
[1748578162325,1.3324,2625.5,2624.6,3.2078]
[1748578162526,1.3324,2625.5,2625.4,0.76163]
[1748578162735,1.3324,2625.5,2625.4,4.56463]
[1748578162939,3.2078,2625.8,2625.7,0.76155]
[1748578163231,3.96934,2625.8,2625.5,0.00571701]
[1748578163427,1.3324,2625.7,2625.5,0.00571701]
[1748578163623,1.3324,2625.7,2625.6,0.76157]
[1748578164034,3.2078,2625.8,2625.7,0.76155]
[1748578168036,1.33811701,2626.0,2625.9,0.76149]
[1748578168231,1.33811701,2626.0,2625.8,4.5635]
[1748578168838,1.33811701,2626.0,2625.9,0.76149]
[1748578174343,0.76155,2625.7,2625.5,3.80671701]
[1748578174541,1.2169,2625.6,2625.5,4.56831701]
[1748578174737,1.2169,2625.6,2625.5,3.80671701]
[1748578175044,0.76164,2625.4,2624.9,7.0088]
[1748578175243,1.2169,2625.6,2625.3,0.76165]
[1748578175446,0.7616,2625.5,2625.3,0.76165]
[1748578175743,1.2169,2625.4,2625.3,0.76165]
[1748578177046,3.2078,2625.5,2625.4,0.76163]
[1748578177240,3.2078,2625.5,2625.4,2.10373]
[1748578178247,1.2169,2625.9,2625.4,2.10373]
[1748578178248,0.76155,2625.7,2625.6,0.76157]
[1748578178440,0.76153,2625.8,2625.6,0.76157]
[1748578179145,1.2169,2625.9,2625.6,0.76157]
[1748578179146,0.76155,2625.7,2625.6,0.76157]
[1748578179346,0.76155,2625.7,2625.5,0.76159]
[1748578179547,0.76166,2625.3,2625.2,3.845]
[1748578180041,0.76165,2625.4,2625.2,4.60669]
[1748578180243,1.3124,2625.3,2625.2,4.60669]
[1748578180747,2.04692,2625.5,2625.3,0.76165]
[1748578181140,3.26432,2625.5,2625.3,0.76165]
[1748578181341,2.5027,2625.5,2625.4,0.76163]
[1748578181643,2.6257,2625.5,2625.4,0.76163]
[1748578182147,5.0719,2625.5,2625.4,0.76163]
[1748578182539,1.8641,2625.5,2625.4,0.76163]
[1748578182742,1.8641,2625.5,2625.3,0.76164]
[1748578183048,2.6257,2625.5,2625.4,0.76163]
[1748578183244,1.8641,2625.5,2625.4,0.76163]
[1748578183948,0.76156,2625.7,2625.5,0.7616]
[1748578184142,0.76156,2625.7,2625.6,0.76157]
[1748578184342,1.3167,2625.7,2625.6,0.76157]
[1748578184842,3.2078,2625.8,2625.7,0.76155]
[1748578185042,3.2078,2625.8,2625.6,4.60656]
[1748578185236,5.28603,2625.8,2625.6,4.60656]
[1748578185441,0.76155,2625.7,2625.6,3.845]
[1748578185648,2.07825,2625.7,2625.6,3.845]
[1748578185852,0.76157,2625.6,2625.5,4.6066]
[1748578186042,2.07827,2625.6,2625.5,3.845]
[1748578186348,0.7616,2625.5,2625.4,4.60663]
[1748578186548,2.0783,2625.5,2625.4,4.60663]
[1748578186743,2.0783,2625.5,2625.4,3.845]
[1748578187144,0.76159,2625.6,2625.4,3.845]
[1748578187450,4.4335,2625.8,2625.5,0.76158]
[1748578187649,0.76157,2625.6,2625.5,0.76158]
[1748578188151,0.7616,2625.5,2625.4,4.60662]
[1748578188449,0.7616,2625.6,2625.4,4.60661]
[1748578188745,1.2257,2625.5,2625.4,4.60661]
[1748578188951,1.9873,2625.5,2625.4,4.60661]
[1748578189445,0.76169,2625.3,2625.2,3.845]
[1748578189753,0.76165,2625.4,2625.3,0.76166]
[1748578189943,2.00515,2625.4,2625.3,0.76166]
[1748578190951,1.2435,2625.4,2625.3,0.76166]
[1748578191556,3.96942,2625.5,2625.4,0.76163]
[1748578191849,4.26899656,2625.5,2625.4,0.76163]
[1748578192148,5.03059656,2625.5,2625.4,0.76163]
[1748578192548,4.26899656,2625.5,2625.4,0.76163]
[1748578192748,5.03061656,2625.5,2625.3,0.76164]
[1748578192951,3.96942,2625.5,2625.3,0.76164]
[1748578193951,3.2078,2625.5,2625.4,0.76163]
[1748578194154,4.26919225,2625.5,2625.4,0.76163]
[1748578195050,5.03081225,2625.5,2625.3,2.08304]
[1748578195353,3.96942,2625.5,2625.3,2.08304]
[1748578195658,3.96942,2625.5,2625.4,0.76163]
[1748578195850,5.03094496,2625.5,2625.4,0.76163]
[1748578196044,4.26932496,2625.5,2625.3,1.3214]
[1748578196353,3.2078,2625.5,2625.4,0.76163]
[1748578196548,1.06155996,2625.5,2625.4,0.76163]
[1748578196751,4.4513,2625.8,2625.4,0.76163]
[1748578196950,0.7616,2625.5,2625.4,0.76163]
[1748578197157,0.7616,2625.5,2625.3,2.08304]
[1748578197453,1.82319419,2625.5,2625.3,2.08304]
[1748578197653,0.7616,2625.5,2625.4,0.76163]
[1748578198051,1.25210228,2625.5,2625.4,0.76163]
[1748578199055,0.1904,2625.5,2625.4,0.76163]
[1748578201156,0.1904,2625.5,2625.4,3.845]
[1748578201157,0.952,2625.5,2625.4,3.845]
[1748578201353,0.952,2625.5,2625.4,4.60663]
[1748578201548,0.1904,2625.5,2625.4,4.60663]
[1748578201756,1.25221427,2625.5,2625.4,4.60663]
[1748578202157,2.01381427,2625.5,2625.4,3.845]
[1748578202358,0.76169,2625.2,2625.1,0.6538]
[1748578202559,0.76169,2625.2,2625.1,3.845]
[1748578203055,1.82410752,2625.2,2625.1,4.60672]
[1748578203258,1.06241752,2625.2,2625.1,4.60672]
[1748578203657,3.3982,2625.5,2625.4,0.76163]
[1748578203862,4.46096094,2625.5,2625.4,0.76163]
[1748578204070,5.22258094,2625.5,2625.1,5.0877]
[1748578204355,1.06276094,2625.4,2625.3,0.76164]
[1748578204755,1.06287046,2625.4,2625.3,0.76164]
[1748578205968,1.82450046,2625.4,2625.3,0.76164]
[1748578206261,0.76166,2625.3,2625.2,2.00437]
[1748578206456,1.82453046,2625.3,2625.2,2.00437]
[1748578206967,1.06287046,2625.3,2625.2,2.00437]
[1748578207263,1.06287046,2625.3,2625.2,0.76167]
[1748578208962,2.07275,2625.4,2625.3,0.76166]
[1748578209261,3.13584235,2625.4,2625.3,0.76166]
[1748578209457,1.06309235,2625.4,2625.3,0.76166]
[1748578210061,1.06309235,2625.4,2625.3,2.06316]
[1748578211763,0.1904,2625.5,2625.4,0.76163]
[1748578211969,0.1904,2625.5,2625.4,2.01023]
[1748578212263,3.2078,2625.8,2625.7,0.76155]
[1748578212571,3.2078,2625.8,2625.7,4.57355]
[1748578212572,4.27081468,2625.8,2625.7,4.57355]
[1748578213063,0.00571701,2626.0,2625.9,0.76149]
[1748578213259,1.06840676,2626.0,2625.9,0.76149]
[1748578213459,1.06838458,2626.0,2625.9,0.76149]
[1748578213662,1.06838458,2626.0,2625.9,2.66929]
[1748578214058,0.00571701,2626.0,2625.9,2.66929]
[1748578214269,3.2078,2626.5,2626.4,0.76134]
[1748578214468,4.2699891,2626.5,2626.3,3.812]
[1748578214769,3.96911,2626.5,2626.4,0.6514]
[1748578214966,4.2700015,2626.5,2626.4,0.6514]
[1748578215159,4.2700015,2626.5,2626.4,1.41274]
[1748578215767,0.00571701,2626.7,2626.6,0.76128]
[1748578215971,1.0672342,2626.7,2626.6,0.76128]
[1748578216667,0.00571701,2626.7,2626.6,0.76128]
[1748578218674,0.00571701,2626.7,2626.6,2.04818]
[1748578220066,1.37279,2627.3,2626.6,2.04818]
[1748578220067,3.8201,2627.5,2626.7,0.76126]
[1748578220370,3.8201,2627.5,2627.4,0.76105]
[1748578221271,3.2078,2627.5,2627.4,0.76105]
[1748578222266,0.00571701,2627.7,2627.6,0.76099]
[1748578222477,0.00571701,2627.7,2627.6,7.77979]
[1748578225167,0.00571701,2627.7,2627.6,3.81]
[1748578225572,0.00571701,2627.7,2627.6,4.57099]
[1748578227267,3.2078,2628.2,2628.1,0.76085]
[1748578227470,5.1547,2628.5,2628.1,3.81]
[1748578227771,5.1547,2628.5,2628.3,0.76078]
[1748578227772,5.91545,2628.5,2628.3,0.76078]
[1748578227978,3.2078,2628.8,2628.2,1.9266]
[1748578228176,0.7607,2628.7,2628.4,0.76074]
[1748578228371,0.76071,2628.6,2628.5,3.809]
[1748578228675,2.05569,2628.7,2628.5,4.56972]
[1748578228877,0.76071,2628.6,2628.5,3.809]
[1748578229277,1.295,2628.7,2628.5,3.809]
[1748578229472,2.05569,2628.7,2628.5,4.56973]
[1748578230075,2.05569,2628.7,2628.5,3.809]
[1748578230277,1.295,2628.7,2628.5,4.56972]
[1748578230678,2.05569,2628.7,2628.5,4.56972]
[1748578230874,0.00571701,2628.8,2628.7,0.76068]
[1748578231973,0.76069,2628.7,2628.6,3.809]
[1748578232179,0.6164,2628.7,2628.6,3.809]
[1748578232381,1.8941,2628.7,2628.6,4.56971]
[1748578232581,1.8941,2628.7,2628.6,3.809]
[1748578232885,1.8941,2628.7,2628.6,4.56971]
[1748578233491,1.2777,2628.7,2628.6,4.56971]
[1748578234088,0.00571701,2628.8,2628.7,0.76068]
[1748578234697,3.2078,2629.1,2629.0,0.76059]
[1748578234895,3.2078,2629.1,2629.0,4.56859]
[1748578235196,3.96836,2629.1,2629.0,3.808]
[1748578235399,0.76061,2629.0,2628.8,0.76064]
[1748578235698,2.01359,2629.0,2628.9,3.808]
[1748578235899,1.253,2629.0,2628.6,0.00570603]
[1748578236089,0.76068,2628.7,2628.6,0.00570603]
[1748578236394,0.76066,2628.8,2628.6,0.76641603]
[1748578236590,5.22148,2628.7,2628.6,0.00570603]
[1748578236798,5.83148,2628.7,2628.6,0.00570603]
[1748578236995,10.83148,2628.7,2628.6,0.00570603]
[1748578238498,10.83148,2628.7,2628.6,0.76641603]
[1748578238499,5.0708,2628.7,2628.6,0.76641603]
[1748578239403,5.83148,2628.7,2628.6,0.00570603]
[1748578240102,5.83148,2628.7,2628.6,0.76641603]
[1748578240296,5.83148,2628.7,2628.6,0.00570603]
[1748578240497,2.62368,2628.7,2628.6,0.00570603]
[1748578240895,5.83148,2628.7,2628.6,0.00570603]
[1748578241198,1.863,2628.7,2628.6,0.00570603]
[1748578241393,3.8332,2629.1,2628.6,0.00570603]
[1748578241595,2.09611,2629.0,2628.8,0.76064]
[1748578242304,2.09609,2629.0,2628.6,3.85470603]
[1748578242803,0.76062,2628.9,2628.7,0.76065]
[1748578243005,1.3355,2628.9,2628.8,0.76065]
[1748578243197,2.09612,2628.9,2628.7,0.76066]
[1748578243399,2.09612,2628.9,2628.8,0.76065]
[1748578243905,0.76061,2629.0,2628.9,0.76061]
[1748578244202,0.76061,2629.0,2628.8,0.76063]
[1748578244399,4.59378,2629.1,2628.9,0.7606]
[1748578244594,4.59378,2629.1,2628.7,1.2273]
[1748578244595,5.86528,2629.1,2628.7,1.2273]
[1748578244801,3.2078,2629.1,2629.0,0.76059]
[1748578244998,1.39774603,2629.2,2629.0,4.60958]
[1748578245294,0.63720603,2629.2,2629.0,3.849]
[1748578245497,1.39774603,2629.2,2629.0,4.60957]
[1748578245700,0.76624603,2629.2,2629.0,5.21937]
[1748578245898,0.76624603,2629.2,2629.0,4.4588]
[1748578245899,0.76056,2629.1,2629.0,4.4588]
[1748578246103,2.03206,2629.1,2629.0,4.4588]
[1748578246607,2.03206,2629.1,2629.0,5.21939]
[1748578247203,2.03206,2629.1,2629.0,4.4588]
[1748578247405,1.2715,2629.1,2629.0,5.21939]
[1748578247604,0.00570603,2629.2,2629.0,4.4588]
[1748578247800,0.00570603,2629.2,2629.1,0.76056]
[1748578248002,0.76623603,2629.2,2629.0,5.21937]
[1748578248299,0.76623603,2629.2,2629.1,0.76056]
[1748578248300,0.00570603,2629.2,2629.1,0.76056]
[1748578248501,0.00570603,2629.2,2629.0,4.4588]
[1748578248703,0.76056,2629.1,2629.0,4.4588]
[1748578248905,2.10254603,2629.2,2629.1,0.76056]
[1748578249095,3.15719469,2629.2,2629.1,0.76056]
[1748578249509,2.39665469,2629.2,2629.1,0.76056]
[1748578249908,0.00570603,2629.2,2629.1,0.76056]
[1748578250103,0.00570603,2629.2,2629.1,2.08346]
[1748578251609,1.06195046,2629.2,2629.1,4.60856]
[1748578252104,2.40055046,2629.2,2629.1,4.60856]
[1748578252700,1.34430603,2629.2,2629.1,4.60856]
[1748578253104,2.10483603,2629.2,2629.1,3.848]
[1748578253805,1.34430603,2629.2,2629.1,4.60856]
[1748578255103,0.00570603,2629.2,2629.1,4.60856]
[1748578255303,0.00570603,2629.2,2629.1,5.93306]
[1748578255503,1.06277531,2629.2,2629.1,5.93306]
[1748578256606,0.00570603,2629.2,2629.1,5.93306]
[1748578257002,0.00570603,2629.2,2629.1,2.08506]
[1748578257203,0.76623603,2629.2,2629.1,3.848]
[1748578257402,1.06312808,2629.2,2629.1,4.60856]
[1748578257807,2.39782808,2629.2,2629.1,4.60856]
[1748578259608,2.39782808,2629.2,2629.1,3.848]
[1748578259816,6.36615808,2629.2,2629.1,3.848]
[1748578260111,6.36615808,2629.2,2628.8,4.498]
[1748578260112,0.76057,2629.1,2628.8,4.498]
[1748578260314,1.05742205,2629.0,2628.9,0.76062]
[1748578260910,0.00570603,2629.2,2629.1,0.76056]
[1748578261811,0.00570603,2629.2,2629.0,4.60858]
[1748578262011,3.2834446,2629.2,2628.9,1.2613]
[1748578262211,1.2358,2629.1,2629.0,0.76059]
[1748578263916,0.76625603,2629.2,2629.0,0.76059]
[1748578264215,1.3061,2629.1,2629.0,0.76059]
[1748578265118,2.06668,2629.1,2628.9,0.7606]
[1748578265319,1.3061,2629.1,2629.0,0.76059]
[1748578266216,2.06666,2629.1,2629.0,0.76059]
[1748578266418,1.3061,2629.1,2629.0,0.76059]
[1748578267419,3.21350603,2629.2,2629.1,0.76056]
[1748578268319,4.45700603,2629.2,2629.1,0.76056]
[1748578268917,0.00570603,2629.2,2629.1,0.76056]
[1748578269817,0.76623603,2629.2,2629.1,0.76056]
[1748578270117,0.00570603,2629.2,2629.1,0.76056]
[1748578272208,0.76033,2629.9,2629.7,0.76036]
[1748578272514,0.76033,2629.9,2629.3,1.90123]
[1748578272515,0.76033,2629.9,2629.8,0.76036]
[1748578272816,1.81461799,2629.9,2629.6,0.7604]
[1748578273017,2.02656,2629.9,2629.7,0.76038]
[1748578273217,1.05424992,2629.8,2629.7,0.76038]
[1748578273412,2.10866955,2629.8,2629.7,0.76038]
[1748578273608,2.10867202,2629.8,2629.7,0.76038]
[1748578274119,2.10867202,2629.8,2629.7,2.67008]
[1748578276120,1.05424992,2629.8,2629.7,2.67008]
[1748578279317,3.2078,2630.3,2630.2,0.76024]
[1748578279711,5.128,2630.7,2630.5,0.76014]
[1748578279918,5.8881,2630.7,2630.2,2.6036]
[1748578280119,5.8881,2630.7,2630.5,0.76014]
[1748578280433,5.8881,2630.7,2630.3,1.2796]
[1748578280434,5.128,2630.7,2630.6,0.76013]
[1748578280620,3.2078,2630.7,2630.6,0.76013]
[1748578281421,0.00370353,2630.9,2630.8,0.76007]
[1748578281626,3.8794,2631.4,2631.3,0.75993]
[1748578281627,3.2078,2631.4,2631.3,0.75993]
[1748578282729,3.2078,2631.4,2631.3,2.02803]
[1748578283030,2.08071,2631.7,2631.3,1.2681]
[1748578283228,0.75984,2631.6,2631.3,2.02801]
[1748578283625,2.08072,2631.7,2631.4,0.75989]
[1748578283928,0.75985,2631.6,2631.3,1.2681]
[1748578284121,0.75985,2631.6,2631.3,2.02802]
[1748578284531,2.08073,2631.7,2631.4,0.75989]
[1748578284830,0.75985,2631.6,2631.3,2.02801]
[1748578285235,1.3209,2631.7,2631.3,2.028]
[1748578285420,1.3209,2631.7,2631.2,0.6497]
[1748578285627,0.76001,2631.0,2630.8,0.76007]
[1748578286130,0.76001,2631.0,2630.7,5.174]
[1748578286329,0.76001,2631.0,2630.8,0.76006]
[1748578286631,0.75995,2631.2,2631.0,0.76001]
[1748578286933,0.76003,2631.0,2630.7,4.64108]
[1748578287130,5.1124,2631.1,2630.7,3.881]
[1748578287329,0.76007,2630.8,2630.7,3.881]
[1748578287731,2.00406,2630.9,2630.7,3.881]
[1748578287930,0.76007,2630.8,2630.7,3.881]
[1748578288127,2.00407,2630.8,2630.7,3.881]
[1748578288334,1.244,2630.8,2630.7,3.881]
[1748578288639,2.00407,2630.8,2630.7,3.881]
[1748578288934,1.244,2630.8,2630.7,4.6411]
[1748578289328,1.244,2630.8,2630.7,3.881]
[1748578289533,1.244,2630.8,2630.6,7.0888]
[1748578289728,0.76016,2630.5,2630.4,0.6319]
[1748578290036,3.96796,2630.5,2630.3,4.64691603]
[1748578290730,3.2078,2630.5,2630.4,0.76019]
[1748578290930,3.2078,2630.5,2630.3,4.64690603]
[1748578291832,1.2136,2630.5,2630.3,4.64690603]
[1748578293232,1.2136,2630.5,2630.4,0.76019]
[1748578294039,1.2136,2630.5,2630.3,4.64690603]
[1748578294536,1.28353857,2630.5,2630.3,4.64690603]
[1748578294742,2.04370857,2630.5,2630.3,3.88670603]
[1748578295537,1.28353857,2630.5,2630.3,3.88670603]
[1748578295739,0.06993857,2630.5,2630.4,0.76019]
[1748578296139,0.06993857,2630.5,2630.4,0.74737394]
[1748578296843,0.83010857,2630.5,2630.3,4.64691603]
[1748578297439,1.2214,2630.4,2630.3,4.64691603]
[1748578297748,1.98159,2630.4,2630.3,4.64691603]
[1748578297937,1.98159,2630.4,2630.3,0.00570603]
[1748578298243,7.63339,2630.4,2630.3,0.00570603]
[1748578298543,2.63339,2630.4,2630.3,0.00570603]
[1748578307952,0.76035,2629.9,2629.8,0.76034]
[1748578308146,0.76035,2629.9,2629.7,7.1048]
[1748578308147,3.2078,2630.1,2629.7,7.1048]
[1748578308347,0.7603,2630.0,2629.7,7.1048]
[1748578308642,0.76032,2630.0,2629.9,0.76032]
[1748578309750,3.96809,2630.1,2630.0,0.7603]
[1748578310251,3.2078,2630.1,2630.0,0.7603]
[1748578311445,0.00570603,2630.2,2630.1,0.76027]
[1748578311642,3.2078,2630.9,2630.1,6.4728]
[1748578311848,3.96784,2630.9,2630.7,0.76008]
[1748578312043,3.96784,2630.9,2630.8,1.9129]
[1748578313552,5.0150892,2630.9,2630.8,1.9129]
[1748578314051,3.96784,2630.9,2630.8,2.67297]
[1748578314454,3.96784,2630.9,2630.8,1.9129]
[1748578314850,1.925,2631.3,2631.1,0.75997]
[1748578314851,0.75994,2631.3,2631.1,0.75997]
[1748578315045,0.75996,2631.2,2631.0,0.76001]
[1748578315246,3.2078,2631.4,2631.1,1.2148]
[1748578315447,0.75994,2631.3,2631.1,1.97477]
[1748578315753,0.75994,2631.3,2631.2,1.2148]
[1748578315955,1.80815203,2631.3,2631.2,1.2148]
[1748578316155,0.75994,2631.3,2631.2,1.2148]
[1748578316551,1.8081848,2631.3,2631.2,1.2148]
[1748578316850,0.75994,2631.3,2631.2,1.2148]
[1748578318556,0.75998,2631.1,2631.0,0.75999]
[1748578318958,0.75998,2631.1,2630.9,6.58593]
[1748578319857,0.75998,2631.1,2631.0,0.76001]
[1748578320351,1.2915,2631.3,2631.0,0.76001]
[1748578320558,0.75997,2631.2,2631.1,0.75998]
[1748578320858,0.75994,2631.3,2631.2,0.75995]
[1748578321653,0.75994,2631.3,2630.9,5.8259]
[1748578321858,0.75994,2631.3,2631.2,0.75995]
[1748578322060,0.75994,2631.3,2631.1,0.75997]
[1748578322259,0.75995,2631.2,2631.1,0.75997]
[1748578322759,3.2078,2631.4,2630.9,6.59162603]
[1748578322963,0.75997,2631.2,2630.9,5.83160603]
[1748578323149,0.75997,2631.2,2631.1,0.75998]
[1748578323752,0.76001,2631.0,2630.9,1.93460603]
[1748578323956,1.2789,2631.3,2630.9,1.93460603]
[1748578323957,0.76001,2631.1,2630.9,1.93460603]
[1748578324261,3.2078,2631.2,2630.9,1.93460603]
[1748578324464,3.2078,2631.2,2631.1,0.75998]
[1748578324859,3.96775,2631.2,2631.0,0.76]
[1748578325061,3.96775,2631.2,2631.1,2.04608]
[1748578325463,3.2078,2631.2,2631.1,2.04608]
[1748578326460,3.96775,2631.2,2631.1,2.04608]
[1748578326763,3.96775,2631.2,2631.1,1.2861]
[1748578327351,3.96775,2631.2,2631.1,2.04608]
[1748578327663,3.96775,2631.2,2631.1,1.2861]
[1748578327862,3.2078,2631.5,2631.1,1.2861]
[1748578328059,5.1118,2631.8,2631.3,0.75992]
[1748578328265,0.75988,2631.5,2631.4,2.0618]
[1748578328464,5.1118,2631.8,2631.6,0.75983]
[1748578328764,3.2078,2631.8,2631.6,0.75983]
[1748578328958,0.75983,2631.7,2631.5,1.39605]
[1748578329163,0.75984,2631.6,2631.5,4.5002]
[1748578329358,0.75984,2631.6,2631.5,0.6362]
[1748578330366,1.99833,2631.7,2631.5,0.6362]
[1748578330564,1.2385,2631.7,2631.6,0.75984]
[1748578330769,1.2385,2631.7,2631.5,0.6362]
[1748578330770,1.99832,2631.7,2631.5,5.26005]
[1748578331065,0.7599,2631.4,2631.3,4.4736]
[1748578331268,0.7599,2631.4,2631.3,0.6096]
[1748578331565,0.75988,2631.5,2631.3,1.36953]
[1748578332161,1.2385,2631.7,2631.3,0.6096]
[1748578332565,0.7599,2631.4,2631.3,1.36951]
[1748578333166,0.7599,2631.4,2631.3,0.6096]
[1748578333470,0.75993,2631.3,2631.2,3.864]
[1748578333664,2.72893,2631.3,2631.2,3.864]
[1748578334463,2.72893,2631.3,2631.2,4.62395]
[1748578335274,2.72893,2631.3,2631.2,3.864]
[1748578336167,2.72893,2631.3,2631.1,0.75997]
[1748578336474,0.75995,2631.2,2631.1,0.75997]
[1748578337267,0.75995,2631.2,2631.0,2.6786]
[1748578337468,0.75995,2631.2,2631.1,0.75998]
[1748578337669,0.75995,2631.2,2631.0,6.5426]
[1748578338177,0.06993857,2631.1,2631.0,6.5426]
[1748578339171,0.75995,2631.2,2631.1,0.75998]
[1748578339366,3.96771,2631.4,2631.0,5.7826]
[1748578339567,3.2078,2631.4,2631.0,5.7826]
[1748578339876,0.75993,2631.3,2631.2,0.75995]
[1748578340268,0.75992,2631.4,2631.2,0.75994]
[1748578340673,1.04884413,2631.3,2631.2,0.75994]
[1748578341074,1.80877413,2631.3,2631.2,0.75994]
[1748578342377,0.75993,2631.3,2631.2,0.75994]
[1748578342673,1.04937911,2631.5,2631.1,0.75997]
[1748578342872,1.3177,2631.6,2631.0,2.67859]
[1748578342873,2.35187911,2631.4,2631.0,2.67859]
[1748578343070,0.75995,2631.2,2631.1,3.864]
[1748578343271,1.11931768,2631.2,2631.1,4.62398]
[1748578343774,1.87926768,2631.2,2631.1,3.864]
[1748578343976,1.87926768,2631.2,2631.1,4.62398]
[1748578344277,0.75998,2631.1,2631.0,4.5108]
[1748578344469,1.80935911,2631.1,2631.0,5.27081]
[1748578345279,1.04937911,2631.1,2631.0,5.27081]
[1748578345977,1.04937911,2631.1,2631.0,1.40681]
[1748578346574,1.04937911,2631.1,2631.0,2.61991]
[1748578347874,1.04937911,2631.1,2631.0,5.82771]
[1748578348078,3.2078,2631.4,2631.3,0.75993]
[1748578348278,0.75985,2631.6,2631.4,0.75989]
[1748578348473,1.81069871,2631.5,2631.4,1.42639]
[1748578348668,1.05082871,2631.5,2631.4,1.42639]
[1748578348872,0.75985,2631.6,2631.4,1.42639]
[1748578349078,0.75985,2631.6,2631.4,2.71719]
[1748578349280,0.75987,2631.5,2631.4,2.71719]
[1748578349479,5.1311,2631.7,2631.6,0.75984]
[1748578349680,5.04632365,2631.7,2631.6,0.75984]
[1748578349880,4.28651365,2631.7,2631.6,0.75984]
[1748578350282,5.04632365,2631.7,2631.6,0.75984]
[1748578350575,1.8886,2632.2,2631.4,1.9573]
[1748578350774,0.75979,2631.8,2631.4,1.9573]
[1748578350973,0.75979,2631.8,2631.6,0.75983]
[1748578351574,0.75981,2631.7,2631.6,0.75983]
[1748578351775,1.221,2631.9,2631.6,0.75983]
[1748578351977,1.221,2631.9,2631.7,0.7598]
[1748578352184,1.98077,2631.9,2631.7,0.7598]
[1748578352882,1.98077,2631.9,2631.7,0.75981]
[1748578353084,1.98077,2631.9,2631.8,0.75978]
[1748578353383,3.05891178,2631.9,2631.7,0.75979]
[1748578353675,1.07814178,2631.8,2631.7,0.75979]
[1748578355085,0.75973,2632.0,2631.8,0.75975]
[1748578355273,1.0778202,2631.9,2631.8,0.75975]
[1748578355983,1.8375902,2631.9,2631.7,1.2358]
[1748578356178,1.8352,2632.2,2631.6,5.23933]
[1748578356375,1.9888,2631.8,2631.7,0.75981]
[1748578356582,1.229,2631.8,2631.7,4.62381]
[1748578356787,3.96755,2632.0,2631.8,0.75977]
[1748578357084,1.07752051,2631.9,2631.8,0.75977]
[1748578357683,1.07752051,2631.9,2631.8,2.02077]
[1748578358386,1.83727051,2631.9,2631.8,2.02078]
[1748578358784,1.07752051,2631.9,2631.8,2.02078]
[1748578360884,1.07752051,2631.9,2631.8,2.64388]
[1748578362687,1.98871,2632.1,2631.9,0.75973]
[1748578362987,1.83556374,2632.0,2631.9,0.75973]
[1748578363388,1.07584374,2632.0,2631.9,0.75973]
[1748578363586,1.83569999,2632.0,2631.9,0.75973]
[1748578364086,1.07597999,2632.0,2631.9,0.75973]
[1748578365297,1.83569999,2632.0,2631.9,0.75973]
[1748578365492,1.07597999,2632.0,2631.9,0.75973]
[1748578366195,1.07597999,2632.0,2631.9,1.97183]
[1748578366700,3.2078,2632.3,2632.2,0.75967]
[1748578366894,3.96744,2632.3,2632.2,0.75967]
[1748578367194,4.4511,2632.3,2632.2,0.75967]
[1748578367496,5.21075,2632.3,2632.1,0.75968]
[1748578367691,4.4511,2632.3,2631.9,1.2121]
[1748578368001,4.4511,2632.3,2632.2,0.75967]
[1748578370100,4.4511,2632.3,2631.9,4.4199]
[1748578370298,4.4511,2632.3,2631.8,0.6231]
[1748578370299,1.2934,2632.2,2631.8,0.6231]
[1748578370494,2.05309,2632.2,2632.0,0.75971]
[1748578370691,0.75969,2632.1,2632.0,0.75971]
[1748578370897,1.2934,2632.1,2632.0,0.75971]
[1748578371100,2.05309,2632.1,2632.0,0.75971]
[1748578371404,1.2934,2632.1,2632.0,0.75971]
[1748578372296,3.8703,2632.3,2632.2,0.75967]
[1748578372695,5.0893,2632.3,2632.2,0.75967]
[1748578373598,6.16556918,2632.3,2632.2,0.75967]
[1748578373998,5.0893,2632.3,2632.2,0.75967]
[1748578374199,6.16556349,2632.3,2632.2,0.75967]
[1748578375205,3.2078,2632.3,2632.2,0.75967]
[1748578375501,0.75961,2632.4,2632.3,0.75963]